[Event "FAI-ch Main 2020"]
[Site "Runavik"]
[Date "2020.10.25"]
[Round "4.5"]
[White "Bjarnasson, Bessi"]
[Black "Rasmussen, Gunnleif"]
[Result "0-1"]
[ECO "C50"]
[WhiteElo "1494"]
[BlackElo "1148"]
[Annotator "NA RC"]
[PlyCount "72"]
[EventDate "2020.10.23"]
[EventType "swiss"]
[EventCountry "FAI"]
[SourceTitle "playchess.com"]
[Source "ChessBase"]
[SourceQuality "1"]
[TimeControl "40/5400+30:900+30"]

1. e4 {[%emt 0:00:00]} e5 {[%emt 0:00:00]} 2. Nf3 {[%emt 0:00:00]} Nf6 {[%emt 0:00:00]} 3. Nc3 {[%emt 0:00:43]} Nc6 {[%emt 0:02:52]} 4. Bc4 {[%emt 0:00:11]} Bc5 {[%emt 0:06:20]} 5. d3 {[%emt 0:00:26]} d6 {[%emt 0:01:19]} 6. h3 {[%emt 0:01:17]} h6 {[%emt 0:02:30]} 7. O-O {[%emt 0:01:21]} O-O {[%emt 0:05:09]} 8. Be3 {[%emt 0:00:11]} Bxe3 {[%emt 0:02:08]} 9. fxe3 {[%emt 0:00:04]} Be6 {[%emt 0:04:26]} 10. Bb3 {[%emt 0:00:04]} Qd7 {[%emt 0:03:26]} 11. a3 {[%emt 0:02:17]} Bxb3 {[%emt 0:01:54]} 12. cxb3 {[%emt 0:00:20]} Ne7 {[%emt 0:00:25]} 13. Nh4 {[%emt 0:02:42]} c6 {[%emt 0:10:54]} 14. Qf3 {[%emt 0:00:13]} Qe6 15. Qg3 {[%emt 0:01:01]} Nh5 {[%emt 0:08:22]} 16. Qh2 {[%emt 0:01:05]} Qxb3 {[%emt 0:01:23]} 17. Rf2 {[%emt 0:00:15]} Ng6 {[%emt 0:03:32]} 18. Nf5 {[%emt 0:00:28]} Qe6 {[%emt 0:01:38]} 19. Raf1 {[%emt 0:00:57]} Ne7 {[%emt 0:03:57]} 20. Ne2 {[%emt 0:01:22]} Nxf5 {[%emt 0:05:31]} 21. exf5 {[%emt 0:02:22]} Qb3 {[%emt 0:02:38]} 22. Nc1 {[%emt 0:04:59]} Qb6 {[%emt 0:03:57]} 23. g4 {[%emt 0:02:54]} Nf6 {[%emt 0:02:37]} 24. Qg3 {[%emt 0:00:31]} Nh7 {[%emt 0:01:28]} 25. h4 {[%emt 0:01:36]} f6 {[%emt 0:02:05]} 26. g5 {[%emt 0:05:02]} fxg5 {[%emt 0:01:48]} 27. hxg5 {[%emt 0:01:03]} Nxg5 {[%emt 0:02:05]} 28. f6 {[%emt 0:02:40]} gxf6 {[%emt 0:04:55]} 29. Rxf6 {[%emt 0:00:13]} Rxf6 {[%emt 0:00:13]} 30. Rxf6 {[%emt 0:00:13]} Kg7 {[%emt 0:01:55]} 31. Rxd6 {[%emt 0:01:09]} Qc5 {[%emt 0:02:08]} 32. Rd7+ {[%emt 0:00:10]} Kg6 {[%emt 0:00:51]} 33. Ne2 {[%emt 0:00:31]} Rf8 {[%emt 0:00:51]} 34. Nc3 {[%emt 0:06:25]} Rf3 {[%emt 0:00:56]} 35. Qe1 {[%emt 0:06:54]} Rxe3 {[%emt 0:01:28]} 36. Qh4 {[%emt 0:03:43]} Nf3+ {[%emt 0:00:33]} 0-1

[Event "FAI-ch Main 2020"]
[Site "Runavik"]
[Date "2020.10.30"]
[Round "5.2"]
[White "Gregersen, Einar"]
[Black "Morkore, Rogvi"]
[Result "1-0"]
[ECO "C01"]
[WhiteElo "1758"]
[BlackElo "1592"]
[Annotator "NA RC"]
[PlyCount "47"]
[EventDate "2020.10.23"]
[EventType "swiss"]
[EventCountry "FAI"]
[SourceTitle "playchess.com"]
[Source "ChessBase"]
[SourceQuality "1"]
[TimeControl "40/5400+30:900+30"]

1. e4 {[%emt 0:00:00]} e6 {[%emt 0:00:39]} 2. d4 {[%emt 0:00:00]} d5 {[%emt 0:00:24]} 3. exd5 {[%emt 0:00:14]} exd5 {[%emt 0:00:18]} 4. Nf3 {[%emt 0:00:33]} Bd6 {[%emt 0:00:57]} 5. Bd3 {[%emt 0:01:02]} Ne7 {[%emt 0:00:51]} 6. O-O {[%emt 0:01:18]} h6 {[%emt 0:03:11]} 7. Ne5 {[%emt 0:08:38]} Bxe5 {[%emt 0:06:15]} 8. dxe5 {[%emt 0:00:09]} Bf5 {[%emt 0:03:35]} 9. Re1 {[%emt 0:17:30]} Bxd3 {[%emt 0:14:51]} 10. Qxd3 {[%emt 0:00:08]} O-O {[%emt 0:00:45]} 11. Nc3 {[%emt 0:06:33]} c6 {[%emt 0:02:23]} 12. Ne2 {[%emt 0:02:10]} Ng6 {[%emt 0:05:43]} 13. Nd4 {[%emt 0:08:33]} Nd7 {[%emt 0:20:52]} 14. f4 {[%emt 0:18:52]} Nc5 {[%emt 0:02:45]} 15. Qf3 {[%emt 0:02:32]} Ne4 {[%emt 0:02:04]} 16. g3 {[%emt 0:00:40]} Qd7 {[%emt 0:03:30]} 17. Qh5 {[%emt 0:03:23]} Ne7 {[%emt 0:09:20]} 18. f5 {[%emt 0:03:01]} c5 {[%emt 0:02:26]} 19. f6 {[%emt 0:15:56]} cxd4 {[%emt 0:09:54]} 20. fxg7 {[%emt 0:00:39]} Kxg7 {[%emt 0:00:08]} 21. Bxh6+ {[%emt 0:00:24]} Kg8 {[%emt 0:02:00]} 22. Rxe4 {[%emt 0:01:22]} f5 {[%emt 0:04:31]} 23. Qg5+ {[%emt 0:00:52]} Kf7 {[%emt 0:00:11]} 24. e6+ {[%emt 0:00:21]} 1-0

[Event "FAI-ch Main 2020"]
[Site "Runavik"]
[Date "2020.10.30"]
[Round "5.3"]
[White "Hojgaard, Brandur"]
[Black "Dahl, Karl M"]
[Result "1-0"]
[ECO "D02"]
[WhiteElo "1741"]
[BlackElo "1590"]
[Annotator "NA RC"]
[PlyCount "75"]
[EventDate "2020.10.23"]
[EventType "swiss"]
[EventCountry "FAI"]
[SourceTitle "playchess.com"]
[Source "ChessBase"]
[SourceQuality "1"]
[TimeControl "40/5400+30:900+30"]

1. d4 {[%emt 0:02:29]} Nf6 {[%emt 0:00:08]} 2. Nf3 {[%emt 0:00:14]} d5 {[%emt 0:00:25]} 3. Bf4 {[%emt 0:00:21]} e6 {[%emt 0:00:59]} 4. e3 {[%emt 0:00:06]} c5 {[%emt 0:00:20]} 5. c3 {[%emt 0:00:13]} Bd6 {[%emt 0:01:04]} 6. Bg3 {[%emt 0:00:12]} O-O {[%emt 0:00:17]} 7. Nbd2 {[%emt 0:00:25]} Nc6 {[%emt 0:01:35]} 8. Bd3 {[%emt 0:00:48]} Re8 {[%emt 0:01:06]} 9. Ne5 {[%emt 0:03:42]} Bxe5 {[%emt 0:04:26]} 10. dxe5 {[%emt 0:01:24]} Nd7 {[%emt 0:00:51]} 11. f4 {[%emt 0:08:16]} c4 {[%emt 0:02:03]} 12. Bc2 {[%emt 0:07:04]} Qb6 {[%emt 0:01:02]} 13. O-O {[%emt 0:12:01]} Qxb2 {[%emt 0:02:34]} 14. Nf3 {[%emt 0:02:10]} Qxc3 {[%emt 0:02:03]} 15. Bxh7+ {[%emt 0:03:58]} Kxh7 {[%emt 0:03:17]} 16. Ng5+ {[%emt 0:00:18]} Kg6 {[%emt 0:00:42]} 17. Qg4 {[%emt 0:01:51]} Ndxe5 {[%emt 0:02:39]} 18. Qh4 {[%emt 0:10:44]} f5 {[%emt 0:09:08]} 19. Qh7+ {[%emt 0:07:04]} Kf6 {[%emt 0:00:11]} 20. fxe5+ {[%emt 0:07:10]} Nxe5 {[%emt 0:02:13]} 21. Bh4 {[%emt 0:01:18]} Qxe3+ {[%emt 0:02:50]} 22. Kh1 {[%emt 0:00:46]} Nd3 {[%emt 0:00:31]} 23. Ne4+ {[%emt 0:06:40]} Ke5 {[%emt 0:02:34]} 24. Ng5 {[%emt 0:02:50]} Kd6 {[%emt 0:06:22]} 25. Qxg7 {[%emt 0:03:21]} Bd7 {[%emt 0:04:42]} 26. Rab1 {[%emt 0:03:49]} Kc6 {[%emt 0:09:27]} 27. Rxb7 {[%emt 0:01:22]} Kxb7 {[%emt 0:03:48]} 28. Qxd7+ {[%emt 0:00:41]} Ka6 {[%emt 0:00:52]} 29. Rb1 {[%emt 0:06:38]} Nb2 {[%emt 0:06:17]} 30. Qd6+ {[%emt 0:00:50]} Ka5 {[%emt 0:00:53]} 31. Be1+ {[%emt 0:02:17]} c3 {[%emt 0:01:13]} 32. Qa3+ {[%emt 0:01:03]} Kb5 {[%emt 0:01:32]} 33. Bxc3 {[%emt 0:00:29]} Kc4 {[%emt 0:12:16]} 34. Qb4+ {[%emt 0:01:12]} Kd3 {[%emt 0:00:02]} 35. Bxb2 {[%emt 0:01:16]} Rab8 {[%emt 0:00:35]} 36. Qc3+ {[%emt 0:01:39]} Ke2 {[%emt 0:00:18]} 37. Re1+ {[%emt 0:00:19]} Kf2 {[%emt 0:00:11]} 38. Qxe3# {[%emt 0:00:09]} 1-0

[Event "FAI-ch Main 2020"]
[Site "Runavik"]
[Date "2020.10.30"]
[Round "5.4"]
[White "Rasmussen, Gunnleif"]
[Black "Joensen, Jon Magnus"]
[Result "0-1"]
[ECO "C50"]
[WhiteElo "1148"]
[BlackElo "1461"]
[Annotator "NA RC"]
[PlyCount "112"]
[EventDate "2020.10.23"]
[EventType "swiss"]
[EventCountry "FAI"]
[SourceTitle "playchess.com"]
[Source "ChessBase"]
[SourceQuality "1"]
[TimeControl "40/5400+30:900+30"]

1. e4 {[%emt 0:00:00]} e5 {[%emt 0:00:00]} 2. Bc4 {[%emt 0:00:00]} Bc5 {[%emt 0:00:41]} 3. Nf3 {[%emt 0:00:33]} Nc6 {[%emt 0:00:18]} 4. d3 {[%emt 0:03:01]} h6 {[%emt 0:02:24]} 5. O-O {[%emt 0:00:38]} Nf6 {[%emt 0:00:06]} 6. c3 {[%emt 0:06:27]} d6 {[%emt 0:00:17]} 7. h3 {[%emt 0:01:41]} O-O {[%emt 0:00:12]} 8. Be3 {[%emt 0:07:26]} Bb6 {[%emt 0:00:27]} 9. Nbd2 {[%emt 0:01:28]} Be6 {[%emt 0:00:30]} 10. Bb3 {[%emt 0:01:49]} Qe7 {[%emt 0:00:54]} 11. Nc4 {[%emt 0:03:53]} Nh7 {[%emt 0:01:42]} 12. Nxb6 {[%emt 0:02:38]} axb6 {[%emt 0:00:17]} 13. Qd2 {[%emt 0:08:00]} f5 {[%emt 0:04:37]} 14. Qc2 {[%emt 0:09:22]} f4 {[%emt 0:01:34]} 15. Bxe6+ {[%emt 0:03:14]} Qxe6 {[%emt 0:00:20]} 16. Bd2 {[%emt 0:03:03]} Kh8 {[%emt 0:00:20]} 17. a3 {[%emt 0:01:36]} g5 {[%emt 0:00:52]} 18. d4 {[%emt 0:01:37]} Ne7 {[%emt 0:01:05]} 19. dxe5 {[%emt 0:05:17]} dxe5 {[%emt 0:02:29]} 20. Nh2 {[%emt 0:06:33]} Nf6 {[%emt 0:02:05]} 21. f3 {[%emt 0:00:30]} Nh5 {[%emt 0:01:14]} 22. Rfd1 {[%emt 0:07:02]} Rad8 {[%emt 0:01:09]} 23. c4 {[%emt 0:01:20]} Qc6 {[%emt 0:00:29]} 24. Be1 {[%emt 0:00:52]} Rd6 {[%emt 0:08:33]} 25. b4 {[%emt 0:03:01]} Nf6 {[%emt 0:01:15]} 26. b5 {[%emt 0:00:47]} Qd7 {[%emt 0:02:08]} 27. Bc3 {[%emt 0:03:50]} Qe6 {[%emt 0:01:05]} 28. Rxd6 {[%emt 0:01:30]} cxd6 {[%emt 0:00:24]} 29. Bb4 {[%emt 0:00:18]} Rc8 {[%emt 0:01:16]} 30. c5 {[%emt 0:06:42]} bxc5 {[%emt 0:01:11]} 31. Be1 {[%emt 0:00:42]} b6 {[%emt 0:03:02]} 32. a4 {[%emt 0:00:44]} d5 {[%emt 0:02:02]} 33. a5 {[%emt 0:01:17]} Ra8 {[%emt 0:04:06]} 34. Ra4 {[%emt 0:05:31]} h5 {[%emt 0:10:42]} 35. axb6 {[%emt 0:01:15]} Rxa4 {[%emt 0:00:50]} 36. Qxa4 {[%emt 0:00:10]} Qxb6 {[%emt 0:01:12]} 37. Bf2 {[%emt 0:03:04]} d4 {[%emt 0:00:43]} 38. Qa6 {[%emt 0:00:31]} Qxa6 {[%emt 0:01:24]} 39. bxa6 {[%emt 0:00:07]} Nc8 {[%emt 0:00:19]} 40. h4 {[%emt 0:00:00]} gxh4 {[%emt 0:00:00]} 41. Bxh4 {[%emt 0:01:39]} Kg7 {[%emt 0:02:14]} 42. Nf1 {[%emt 0:02:04]} c4 {[%emt 0:00:26]} 43. Nd2 {[%emt 0:03:35]} c3 {[%emt 0:00:41]} 44. Nb3 {[%emt 0:01:27]} Nd7 {[%emt 0:02:31]} 45. a7 {[%emt 0:04:58]} Nxa7 {[%emt 0:00:17]} 46. Be7 {[%emt 0:00:17]} Kf7 {[%emt 0:00:30]} 47. Ba3 {[%emt 0:00:13]} Nb5 {[%emt 0:01:58]} 48. Bc1 {[%emt 0:03:16]} Ke6 {[%emt 0:00:42]} 49. Kf2 {[%emt 0:02:39]} h4 {[%emt 0:02:14]} 50. Ke2 {[%emt 0:01:01]} Kd6 {[%emt 0:00:11]} 51. Kd3 {[%emt 0:00:35]} Nc5+ {[%emt 0:00:48]} 52. Nxc5 {[%emt 0:01:11]} Kxc5 {[%emt 0:00:12]} 53. Kc2 {[%emt 0:00:07]} Kc4 {[%emt 0:00:12]} 54. Bd2 {[%emt 0:00:50]} d3+ {[%emt 0:00:30]} 55. Kd1 {[%emt 0:00:07]} cxd2 {[%emt 0:00:28]} 56. Kxd2 {[%emt 0:00:10]} Nd4 {[%emt 0:00:15]} 0-1

[Event "FAI-ch Main 2020"]
[Site "Runavik"]
[Date "2020.10.30"]
[Round "5.5"]
[White "Joensen, Henrik W."]
[Black "Joensen, Sigurd"]
[Result "1-0"]
[ECO "C41"]
[WhiteElo "1650"]
[BlackElo "1537"]
[Annotator "NA RC"]
[PlyCount "41"]
[EventDate "2020.10.23"]
[EventType "swiss"]
[EventCountry "FAI"]
[SourceTitle "playchess.com"]
[Source "ChessBase"]
[SourceQuality "1"]
[TimeControl "40/5400+30:900+30"]

1. e4 {[%emt 0:03:15]} e5 {[%emt 0:00:00]} 2. Nf3 {[%emt 0:00:07]} d6 {[%emt 0:01:19]} 3. d4 {[%emt 0:00:09]} exd4 {[%emt 0:02:26]} 4. Nxd4 {[%emt 0:00:22]} Nc6 {[%emt 0:00:49]} 5. Bc4 {[%emt 0:01:31]} Nxd4 {[%emt 0:03:12]} 6. Qxd4 {[%emt 0:00:13]} Qf6 {[%emt 0:00:36]} 7. Qd3 {[%emt 0:01:19]} Be6 {[%emt 0:01:35]} 8. O-O {[%emt 0:01:50]} Bxc4 {[%emt 0:04:12]} 9. Qxc4 {[%emt 0:00:28]} Qd8 {[%emt 0:05:50]} 10. Nc3 {[%emt 0:00:47]} Ne7 {[%emt 0:07:01]} 11. Be3 {[%emt 0:02:24]} Nc6 {[%emt 0:02:18]} 12. f4 {[%emt 0:00:51]} Qe7 {[%emt 0:05:03]} 13. Nd5 {[%emt 0:01:48]} Qd8 {[%emt 0:08:45]} 14. Rad1 {[%emt 0:02:04]} Be7 {[%emt 0:01:48]} 15. Rfe1 {[%emt 0:05:19]} O-O {[%emt 0:01:27]} 16. e5 {[%emt 0:01:22]} Kh8 {[%emt 0:01:20]} 17. g4 {[%emt 0:10:17]} f6 {[%emt 0:06:31]} 18. Nxe7 {[%emt 0:07:55]} Nxe5 {[%emt 0:06:45]} 19. fxe5 {[%emt 0:01:46]} Qxe7 {[%emt 0:06:38]} 20. exd6 {[%emt 0:03:30]} cxd6 {[%emt 0:02:15]} 21. Bf4 1-0

[Event "FAI-ch Main 2020"]
[Site "Runavik"]
[Date "2020.10.31"]
[Round "6.1"]
[White "Tummasarson, Flovin M."]
[Black "Hojgaard, Brandur"]
[Result "1-0"]
[ECO "C77"]
[WhiteElo "1625"]
[BlackElo "1741"]
[Annotator "NA RC"]
[PlyCount "115"]
[EventDate "2020.10.23"]
[EventType "swiss"]
[EventCountry "FAI"]
[SourceTitle "playchess.com"]
[Source "ChessBase"]
[SourceQuality "1"]
[TimeControl "40/5400+30:900+30"]

1. e4 {[%emt 0:00:00]} e5 {[%emt 0:00:00]} 2. Nf3 {[%emt 0:00:22]} Nc6 {[%emt 0:00:00]} 3. Bb5 {[%emt 0:00:32]} a6 {[%emt 0:00:56]} 4. Ba4 {[%emt 0:00:42]} Nf6 {[%emt 0:00:20]} 5. d3 {[%emt 0:00:40]} b5 {[%emt 0:03:02]} 6. Bb3 {[%emt 0:00:35]} d6 {[%emt 0:05:29]} 7. c3 {[%emt 0:01:14]} Be7 {[%emt 0:07:08]} 8. O-O {[%emt 0:02:10]} Na5 {[%emt 0:02:51]} 9. Bc2 {[%emt 0:00:17]} c5 {[%emt 0:00:17]} 10. Re1 {[%emt 0:02:28]} Bg4 {[%emt 0:04:43]} 11. Nbd2 {[%emt 0:02:23]} Nc6 {[%emt 0:02:40]} 12. h3 {[%emt 0:04:12]} Bd7 {[%emt 0:08:54]} 13. Nf1 {[%emt 0:05:01]} h6 {[%emt 0:04:15]} 14. Ng3 {[%emt 0:02:13]} g5 {[%emt 0:01:57]} 15. Nh2 {[%emt 0:05:11]} Qc8 {[%emt 0:04:28]} 16. a4 {[%emt 0:07:27]} b4 {[%emt 0:01:07]} 17. Bd2 {[%emt 0:12:12]} a5 {[%emt 0:00:40]} 18. Bb3 {[%emt 0:01:05]} g4 {[%emt 0:07:02]} 19. hxg4 {[%emt 0:04:53]} Nxg4 {[%emt 0:04:44]} 20. Qf3 {[%emt 0:06:22]} f6 {[%emt 0:10:43]} 21. Bd5 {[%emt 0:02:07]} Kd8 {[%emt 0:02:27]} 22. Nf5 {[%emt 0:02:12]} Nxh2 {[%emt 0:00:41]} 23. Kxh2 {[%emt 0:00:12]} Bxf5 {[%emt 0:04:44]} 24. exf5 {[%emt 0:01:24]} Ra6 {[%emt 0:01:25]} 25. Rac1 {[%emt 0:03:44]} Kc7 {[%emt 0:01:12]} 26. Bxc6 {[%emt 0:07:52]} Rxc6 {[%emt 0:00:38]} 27. cxb4 {[%emt 0:00:11]} axb4 {[%emt 0:01:41]} 28. Bxb4 {[%emt 0:00:47]} Qa6 {[%emt 0:07:14]} 29. Bc3 {[%emt 0:01:18]} Qa8 {[%emt 0:06:26]} 30. a5 {[%emt 0:02:26]} Ra6 {[%emt 0:01:54]} 31. Qe3 {[%emt 0:03:15]} Rg8 {[%emt 0:01:34]} 32. f3 {[%emt 0:00:46]} Kd7 {[%emt 0:01:31]} 33. Re2 {[%emt 0:08:33]} d5 {[%emt 0:01:41]} 34. d4 {[%emt 0:01:01]} cxd4 {[%emt 0:01:31]} 35. Bxd4 {[%emt 0:00:35]} Rc6 {[%emt 0:00:48]} 36. Rxc6 {[%emt 0:01:36]} Qxc6 {[%emt 0:00:06]} 37. Bb6 {[%emt 0:01:17]} d4 {[%emt 0:00:53]} 38. Bxd4 {[%emt 0:01:14]} Bd6 {[%emt 0:00:32]} 39. Bc3 {[%emt 0:01:01]} Qc7 {[%emt 0:00:30]} 40. Rd2 {[%emt 0:00:00]} Ke7 {[%emt 0:00:00]} 41. Qe4 {[%emt 0:05:37]} Rg5 {[%emt 0:05:45]} 42. g4 {[%emt 0:01:42]} h5 {[%emt 0:00:14]} 43. Bb4 {[%emt 0:01:01]} Bxb4 {[%emt 0:02:01]} 44. Qxb4+ {[%emt 0:00:10]} Kf7 {[%emt 0:04:13]} 45. Kh3 {[%emt 0:01:20]} hxg4+ {[%emt 0:00:33]} 46. fxg4 {[%emt 0:00:19]} Qc6 {[%emt 0:01:45]} 47. Qb3+ {[%emt 0:00:44]} Kg7 {[%emt 0:01:01]} 48. Qd5 {[%emt 0:00:19]} Qc1 {[%emt 0:02:31]} 49. Qg2 {[%emt 0:01:49]} Qe1 {[%emt 0:01:22]} 50. Qf2 {[%emt 0:02:11]} Qh1+ {[%emt 0:00:32]} 51. Kg3 {[%emt 0:00:16]} Qh5 {[%emt 0:01:05]} 52. Qa7+ {[%emt 0:00:17]} Kh6 {[%emt 0:00:25]} 53. Qe3 {[%emt 0:11:12]} Qxg4+ {[%emt 0:00:38]} 54. Kf2 {[%emt 0:00:36]} Qxf5+ {[%emt 0:00:28]} 55. Ke1 {[%emt 0:00:39]} Qb1+ {[%emt 0:00:26]} 56. Ke2 {[%emt 0:02:31]} Kg7 {[%emt 0:00:22]} 57. Rd7+ {[%emt 0:00:33]} Kf8 {[%emt 0:00:49]} 58. Qc5+ 1-0

[Event "FAI-ch Main 2020"]
[Site "Runavik"]
[Date "2020.10.31"]
[Round "6.3"]
[White "Morkore, Rogvi"]
[Black "Joensen, Jon Magnus"]
[Result "1-0"]
[ECO "A16"]
[WhiteElo "1592"]
[BlackElo "1461"]
[Annotator "NA RC"]
[PlyCount "113"]
[EventDate "2020.10.23"]
[EventType "swiss"]
[EventCountry "FAI"]
[SourceTitle "playchess.com"]
[Source "ChessBase"]
[SourceQuality "1"]
[TimeControl "40/5400+30:900+30"]

1. c4 {[%emt 0:00:00]} Nf6 {[%emt 0:04:52]} 2. Nc3 {[%emt 0:00:14]} g6 {[%emt 0:00:18]} 3. g3 {[%emt 0:00:17]} Bg7 {[%emt 0:00:12]} 4. Bg2 {[%emt 0:00:15]} O-O {[%emt 0:00:08]} 5. d4 {[%emt 0:00:43]} d6 {[%emt 0:00:41]} 6. e4 {[%emt 0:01:31]} e5 {[%emt 0:00:26]} 7. d5 {[%emt 0:00:34]} c6 {[%emt 0:00:21]} 8. Nge2 {[%emt 0:00:40]} cxd5 {[%emt 0:03:07]} 9. cxd5 {[%emt 0:01:19]} Bg4 {[%emt 0:00:49]} 10. f3 {[%emt 0:04:02]} Bd7 {[%emt 0:00:24]} 11. Qb3 {[%emt 0:03:49]} b6 {[%emt 0:05:32]} 12. Qa3 {[%emt 0:07:37]} Ne8 {[%emt 0:01:05]} 13. O-O {[%emt 0:01:52]} f5 {[%emt 0:00:13]} 14. f4 {[%emt 0:09:12]} a5 {[%emt 0:04:04]} 15. fxe5 {[%emt 0:06:10]} Bxe5 {[%emt 0:01:40]} 16. Bf4 {[%emt 0:00:42]} Qe7 {[%emt 0:14:54]} 17. Bxe5 {[%emt 0:04:45]} Qxe5 {[%emt 0:02:04]} 18. Rae1 {[%emt 0:05:00]} Na6 {[%emt 0:02:37]} 19. exf5 {[%emt 0:14:32]} Rxf5 {[%emt 0:00:45]} 20. Nf4 {[%emt 0:02:23]} Qd4+ {[%emt 0:00:34]} 21. Kh1 {[%emt 0:00:17]} Nc5 {[%emt 0:00:18]} 22. Ne6 {[%emt 0:08:31]} Rxf1+ {[%emt 0:01:58]} 23. Rxf1 {[%emt 0:00:14]} Bxe6 {[%emt 0:04:05]} 24. dxe6 {[%emt 0:01:48]} Rb8 {[%emt 0:00:38]} 25. Nb5 {[%emt 0:06:35]} Qe5 {[%emt 0:01:55]} 26. Qf3 {[%emt 0:02:00]} Qf5 {[%emt 0:12:05]} 27. Qc6 {[%emt 0:07:17]} Qe5 {[%emt 0:02:19]} 28. Bd5 {[%emt 0:02:23]} Kg7 {[%emt 0:08:21]} 29. Nc7 {[%emt 0:00:32]} Nf6 {[%emt 0:00:39]} 30. Bc4 {[%emt 0:04:32]} Kh6 {[%emt 0:04:02]} 31. Qf3 {[%emt 0:01:01]} Rb7 {[%emt 0:06:00]} 32. Qxf6 {[%emt 0:02:28]} Qxf6 {[%emt 0:00:14]} 33. Rxf6 {[%emt 0:00:05]} Rxc7 {[%emt 0:00:22]} 34. e7 {[%emt 0:00:58]} Rxe7 {[%emt 0:01:20]} 35. Rxd6 {[%emt 0:00:06]} Re4 {[%emt 0:02:10]} 36. b3 {[%emt 0:00:48]} a4 {[%emt 0:05:47]} 37. Rxb6 {[%emt 0:00:10]} axb3 {[%emt 0:00:59]} 38. axb3 {[%emt 0:00:12]} Rd4 {[%emt 0:00:38]} 39. Rb5 {[%emt 0:01:56]} Ne4 {[%emt 0:02:20]} 40. Rd5 {[%emt 0:00:00]} Rxd5 {[%emt 0:00:00]} 41. Bxd5 {[%emt 0:03:00]} Nd6 {[%emt 0:03:31]} 42. Kg2 {[%emt 0:01:40]} Nc8 {[%emt 0:00:11]} 43. b4 {[%emt 0:01:17]} Kg5 {[%emt 0:00:14]} 44. Be4 {[%emt 0:00:42]} h6 {[%emt 0:00:09]} 45. Kf3 {[%emt 0:00:41]} Kf6 {[%emt 0:00:10]} 46. Ke3 {[%emt 0:01:18]} g5 {[%emt 0:00:52]} 47. Kd4 {[%emt 0:00:16]} Ke6 {[%emt 0:00:40]} 48. Kc5 {[%emt 0:00:48]} Nd6 {[%emt 0:00:50]} 49. Bc6 {[%emt 0:02:26]} Nc8 {[%emt 0:00:42]} 50. b5 {[%emt 0:00:28]} h5 {[%emt 0:00:50]} 51. b6 {[%emt 0:00:19]} Nxb6 {[%emt 0:00:11]} 52. Kxb6 {[%emt 0:00:09]} Ke5 {[%emt 0:00:28]} 53. Kc5 {[%emt 0:02:23]} h4 {[%emt 0:00:11]} 54. Bf3 {[%emt 0:02:42]} hxg3 {[%emt 0:01:14]} 55. hxg3 {[%emt 0:00:11]} Kf5 {[%emt 0:00:32]} 56. Kd5 {[%emt 0:00:58]} g4 {[%emt 0:00:14]} 57. Be2 {[%emt 0:00:14]} 1-0

[Event "FAI-ch Main 2020"]
[Site "Runavik"]
[Date "2020.10.31"]
[Round "6.4"]
[White "Rasmussen, Gunnleif"]
[Black "Joensen, Henrik W."]
[Result "1-0"]
[ECO "B23"]
[WhiteElo "1148"]
[BlackElo "1650"]
[Annotator "NA RC"]
[PlyCount "79"]
[EventDate "2020.10.23"]
[EventType "swiss"]
[EventCountry "FAI"]
[SourceTitle "playchess.com"]
[Source "ChessBase"]
[SourceQuality "1"]
[TimeControl "40/5400+30:900+30"]

1. e4 {[%emt 0:00:00]} c5 {[%emt 0:06:46]} 2. Nc3 {[%emt 0:00:00]} Nc6 {[%emt 0:00:23]} 3. f4 {[%emt 0:00:04]} e5 {[%emt 0:04:14]} 4. Nf3 {[%emt 0:01:46]} d6 {[%emt 0:00:24]} 5. Bb5 {[%emt 0:00:18]} Bg4 {[%emt 0:03:15]} 6. Bxc6+ {[%emt 0:04:33]} bxc6 {[%emt 0:00:38]} 7. O-O {[%emt 0:00:26]} Nf6 {[%emt 0:01:22]} 8. d3 {[%emt 0:00:11]} c4 {[%emt 0:05:13]} 9. Kh1 {[%emt 0:05:01]} cxd3 {[%emt 0:01:04]} 10. cxd3 {[%emt 0:00:38]} Be7 {[%emt 0:01:15]} 11. f5 {[%emt 0:00:42]} O-O {[%emt 0:03:11]} 12. Qe1 {[%emt 0:00:16]} Re8 {[%emt 0:12:05]} 13. Qh4 {[%emt 0:30:02]} Bxf3 {[%emt 0:02:56]} 14. Rxf3 {[%emt 0:01:03]} d5 {[%emt 0:05:49]} 15. Rh3 {[%emt 0:03:22]} d4 {[%emt 0:14:18]} 16. Ne2 {[%emt 0:14:19]} Qb6 {[%emt 0:07:38]} 17. g4 {[%emt 0:01:38]} h5 {[%emt 0:06:05]} 18. g5 {[%emt 0:04:15]} Ng4 {[%emt 0:02:51]} 19. Kg1 {[%emt 0:09:01]} g6 {[%emt 0:03:14]} 20. Ng3 {[%emt 0:03:28]} Qb4 {[%emt 0:03:11]} 21. Nxh5 {[%emt 0:06:38]} gxh5 {[%emt 0:00:44]} 22. f6 {[%emt 0:01:48]} Bd8 {[%emt 0:02:30]} 23. Kf1 {[%emt 0:03:21]} Ba5 {[%emt 0:07:37]} 24. Ke2 {[%emt 0:03:29]} Re6 {[%emt 0:01:21]} 25. a3 {[%emt 0:01:51]} Qb3 {[%emt 0:00:22]} 26. Bd2 {[%emt 0:02:36]} Qxb2 {[%emt 0:00:35]} 27. Rd1 {[%emt 0:00:14]} Kf8 {[%emt 0:02:05]} 28. Qxh5 {[%emt 0:01:09]} Nxf6 {[%emt 0:01:07]} 29. Qh8+ {[%emt 0:01:19]} Ng8 {[%emt 0:00:20]} 30. Rh6 {[%emt 0:00:33]} Rxh6 {[%emt 0:00:30]} 31. gxh6 {[%emt 0:00:15]} Ke7 {[%emt 0:00:43]} 32. Qxe5+ {[%emt 0:00:36]} Kd7 {[%emt 0:00:34]} 33. Qxa5 {[%emt 0:00:52]} Ne7 {[%emt 0:00:23]} 34. Qe5 {[%emt 0:00:21]} Rg8 {[%emt 0:00:30]} 35. Kf3 {[%emt 0:00:39]} Ng6 {[%emt 0:00:34]} 36. Qh5 {[%emt 0:00:31]} Qxa3 {[%emt 0:00:38]} 37. h7 {[%emt 0:00:16]} Qxd3+ {[%emt 0:00:12]} 38. Kf2 {[%emt 0:00:32]} Re8 {[%emt 0:00:42]} 39. Qf5+ {[%emt 0:00:22]} Ke7 {[%emt 0:01:07]} 40. Bg5+ {[%emt 0:00:00]} 1-0